Cogmind - Beta 14 @@@ ROGUE MODE // 2024.08.26 @ 00:10:49 // Winter2022/Polymind Player: SoftwareLlama Result: Destroyed by B-75 Beast with Magnetic Acceleration Cannon Performance ------------- Evolutions (3) 1500 Regions Visited (6) 1200 Robots Destroyed (43) 215 Value Destroyed (1326) 1326 Prototype IDs (2) 40 Alien Tech Used (0) 0 Bonus (3207) 3207 TOTAL SCORE: 6728 Bonus ------- Polymind Skill 2840 Pacifist 200 High Alert Combat Kills 167 Cogmind --------- Core Integrity 0/700 Matter 0/0 Energy 50/100 System Corruption 5% Temperature Cool (12) Movement Core (50) Location -7/Lower Caves Parts ------- > --- POWER (1) -------- (None) > --- PROPULSION (2) --- (None) > --- UTILITY (1) ------ (None) > --- WEAPON (2) ------- (None) > --- INVENTORY (0) ---- (None) Peak State ------------ > --- POWER ------------ Light Deuterium Engine > --- PROPULSION ------- Combat Airjet Combat Airjet > --- UTILITY ---------- Launcher Guidance Computer Improved Light Armor Plating Shock Absorption System > --- WEAPON ----------- Mini Grenade Launcher > --- INVENTORY -------- (None) [Rating: 26] Favorites ----------- Power Light Nuclear Core Engine Light Deuterium Engine Power Core Light Nuclear Core Propulsion Combat Airjet Leg Carbon-fiber Leg Hover Unit Combat Airjet Flight Unit VTOL Module Utility Launcher Guidance Computer Device Shock Absorption System Processor Launcher Guidance Computer Hackware Hacking Suite Protection Improved Light Armor Plating Weapon Mini Grenade Launcher Ballistic Gun Autogun Launcher Mini Grenade Launcher Special Melee Weapon Datajack Build | -11 -10 -9 -9 -8 -7 -7 ------- Run | Yrd Mat Mat Min Mat Fac Low Slots Evolved . | . . . . . . . Power . | . . . . . . . Propulsion . | . . . . . . . Utility . | . . . . . . . Weapon . | . . . . . . . Parts Attached . | . . . . . . . Power . | . . . . . . . Engine . | . . . . . . . Core . | . . . . . . . Reactor . | . . . . . . . Propulsion . | . . . . . . . Treads . | . . . . . . . Leg . | . . . . . . . Wheel . | . . . . . . . Hover . | . . . . . . . Flight . | . . . . . . . Utility . | . . . . . . . Device . | . . . . . . . Storage . | . . . . . . . Processor . | . . . . . . . Hackware . | . . . . . . . Protection . | . . . . . . . Artifact . | . . . . . . . Weapon . | . . . . . . . Energy Gun . | . . . . . . . Energy Cannon . | . . . . . . . Ballistic Gun . | . . . . . . . Ballistic Cannon . | . . . . . . . Launcher . | . . . . . . . Special Weapon . | . . . . . . . Impact Weapon . | . . . . . . . Slashing Weapon . | . . . . . . . Piercing Weapon . | . . . . . . . Special Melee Weapon . | . . . . . . . Unidentified Prototypes . | . . . . . . . Parts Lost 9 | . 1 . 2 1 1 4 Power 2 | . . . . 1 . 1 Propulsion 1 | . 1 . . . . . Utility 2 | . . . 2 . . . Weapon 4 | . . . . . 1 3 Highest Loss Streak 2 | . 1 . 1 1 1 2 To Critical Strikes . | . . . . . . . Average Slot Usage (%) 73 | . 68 80 81 67 54 89 Engine 7 | . 15 20 14 10 . . Core 6 | . . . . . 9 18 Leg 4 | . . . . . . 16 Hover 15 | . 17 20 27 28 8 . Flight 11 | . 10 . . . 18 23 Processor 8 | . . . 13 14 4 8 Hackware 2 | . 10 20 . . . . Protection 1 | . . . 9 . . . Ballistic Gun 8 | . 5 . . . 9 21 Launcher 5 | . . . 13 14 2 . Special Melee Weapon 2 | . 10 20 . . . . Peak Build Rating 26 | . 7 6 26 19 16 15 Average Rating 12 | . 4 6 20 18 7 10 On Entrance 8 | . . 6 6 19 16 9 Naked Turns 143 | . 38 . 2 . 93 10 Heaviest Build 12 | . 4 4 12 6 8 11 Greatest Support 30 | 3 12 6 24 24 24 30 Greatest Overweight (x) . | . . . . . . . Average Overweight (x) . | . . . . . . . Largest Inventory Capacity 1 | . 1 1 1 1 1 1 Average Capacity . | . . 1 . 1 . . Most Carried . | . . . . . . . Average Carried . | . . . . . . . Final Capacity 1 | . 1 1 1 1 . . Final Carried . | . . . . . . . Class Distribution -------------------- 42% | Demolisher 22% | Swarmer 13% | Hunter 11% | Operator 10% | Cogmind Dominant Class ---------------- Operator | -10/Materials Operator | -9/Materials Demolisher | -9/Mines Demolisher | -8/Materials Swarmer | -7/Factory Hunter | -7/Lower Caves Resources | -11 -10 -9 -9 -8 -7 -7 ----------- Run | Yrd Mat Mat Min Mat Fac Low Matter Collected 880 | . 1 . 270 121 138 350 Remotely . | . . . . . . . Salvage Created 1162 | . . . 341 278 166 377 Parts 80 | . . . 25 21 18 16 Haulers Intercepted 1 | . . . . 1 . . Recyclers Shooed 2 | . . . 2 . . . Parts Field Recycled . | . . . . . . . Retrieved Matter . | . . . . . . . Parts Self-Destructed 10 | . . . . . . 10 Prevented . | . . . . . . . Kills | -11 -10 -9 -9 -8 -7 -7 ------- Run | Yrd Mat Mat Min Mat Fac Low Combat Hostiles Destroyed 36 | . . . 18 11 4 3 Melee 1 | . . . . . 1 . Guns 6 | . . . . . 3 3 AOE 29 | . . . 18 11 . . Classes Destroyed 13 | . . . 8 4 . 1 Worker 6 | . . . 3 3 . . Builder 5 | . . . 1 2 2 . Hauler 1 | . . . . 1 . . Recycler 1 | . . . 1 . . . Mechanic 1 | . . . . 1 . . Operator 1 | . . . . 1 . . Watcher 1 | . . . . 1 . . Swarmer 6 | . . . 3 . 3 . Grunt 17 | . . . 3 11 . 3 Sentry 3 | . . . 2 . 1 . Demolisher 1 | . . . 1 . . . Samaritan 2 | . . . . . . 2 Assembled 9 | . . . 9 . . . Best Kill Streak 14 | . . . 14 11 3 2 Combat Bots Only 12 | . . . 12 6 3 2 Max Kills in Single Turn 4 | . . . 3 4 1 1 Gunslinging . | . . . . . . . Exploded 2 | . . . 2 2 . . Melee 1 | . . . . . 1 . Uniques/NPCs Destroyed . | . . . . . . . Combat | -11 -10 -9 -9 -8 -7 -7 -------- Run | Yrd Mat Mat Min Mat Fac Low Hostile Shots Fired 243 | . 32 . 36 15 74 86 Missed 96 | . 13 . 13 5 33 32 Damage Taken 2285 | . 159 . 537 199 410 980 Core 1123 | . 70 . 253 70 270 460 Absorbed by Shields . | . . . . . . . Ignored by Resistances 425 | . . . 363 49 . 13 Core Remaining (%) 73 | 100 72 . 36 87 . . Volleys Fired 119 | . . . 27 23 21 48 Largest 2 | . . . 1 1 1 2 Hottest 48 | . . . 30 30 30 48 Shots Fired 135 | . . . 27 23 21 64 Gun 83 | . . . . . 19 64 Cannon . | . . . . . . . Launcher 52 | . . . 27 23 2 . Special . | . . . . . . . Kinetic 83 | . . . . . 19 64 Thermal . | . . . . . . . Explosive 52 | . . . 27 23 2 . Electromagnetic . | . . . . . . . Robot Hit Streak 17 | . . . 11 9 17 9 Robot Miss Streak 3 | . . . 1 2 3 2 Penetration Max 1 | . . . . . . 1 Secondary Targets 2 | . . . . . . 2 Max Gunslinging Chain 1 | . . . . . . 1 Shots Hit Robots 82 | . 3 . 13 9 13 44 Core Hits 105 | . . . 33 39 15 18 Critical Kills 1 | . . . . . . 1 Critical Parts Destroyed . | . . . . . . . Critical Strikes 1 | . . . . . . 1 Destroy 1 | . . . . . . 1 Melee Attacks 6 | . 6 . . . . . Impact . | . . . . . . . Slashing . | . . . . . . . Piercing . | . . . . . . . Sneak Attacks . | . . . . . . . Combat Hostiles . | . . . . . . . Follow-up Attacks . | . . . . . . . Damage Inflicted 4164 | . . . 1432 1776 260 696 Guns 841 | . . . . . 174 667 Cannons . | . . . . . . . Explosions 3259 | . . . 1431 1776 52 . Melee . | . . . . . . . Ramming 64 | . . . 1 . 34 29 Kinetic 841 | . . . . . 174 667 Thermal 143 | . . . . 143 . . Explosive 3116 | . . . 1431 1633 52 . Electromagnetic . | . . . . . . . Impact . | . . . . . . . Slashing . | . . . . . . . Piercing . | . . . . . . . Highest Corruption 5 | . . . . . 3 5 Average Corruption 2 | . . . . . 2 3 Corruption Purged . | . . . . . . . Corruption Blocked . | . . . . . . . Effects 9 | . . . . . 2 7 Message Errors 1 | . . . . . 1 . Matter Fused 1 | . . . . . . 1 Energy Discharges 2 | . . . . . . 2 Parts Fused 1 | . . . . . 1 . Data Loss (minor) 3 | . . . . . . 3 Weapon Failures 1 | . . . . . . 1 Overload Shots . | . . . . . . . Overflow Damage 66 | . . . 44 22 . . Projectiles . | . . . . . . . Explosions 66 | . . . 44 22 . . Melee . | . . . . . . . Knockbacks . | . . . . . . . Impact . | . . . . . . . Kinetic . | . . . . . . . Secondary . | . . . . . . . Self-Inflicted Damage 256 | . . . 194 32 16 14 Shots 11 | . . . 9 2 . . Rammed 15 | . . . 1 . 7 7 Targets Rammed 15 | . . . 1 . 7 7 Kicked . | . . . . . . . Crushed . | . . . . . . . Highest Temperature 128 | . . . 10 22 26 128 Average Temperature 30 | . . . 4 11 11 40 Received Heat Transfer 639 | . . . 33 108 102 396 Siege Activations . | . . . . . . . Robots Corrupted . | . . . . . . . Combat Hostiles . | . . . . . . . Parts Fried . | . . . . . . . Impact Corruptions . | . . . . . . . Robots Melted . | . . . . . . . Combat Hostiles . | . . . . . . . Parts Melted . | . . . . . . . Heat Transferred 150 | . . . . 150 . . Parts Sabotaged . | . . . . . . . Parts Stolen . | . . . . . . . Parts Stripped . | . . . . . . . Power Chain Reactions . | . . . . . . . Alert | -11 -10 -9 -9 -8 -7 -7 ------- Run | Yrd Mat Mat Min Mat Fac Low Peak Influence 795 | . 50 99 504 795 526 . Initial 302 | . . 20 38 196 302 . Average 319 | . 8 28 326 489 407 . Maximum Alert Level 3 | . . . 2 3 2 . Low Security (%) 30 | 100 100 100 7 23 . . Level 1 29 | . . . 66 7 40 . Level 2 36 | . . . 26 53 59 . Level 3 3 | . . . . 15 . . Level 4 . | . . . . . . . Level 5 . | . . . . . . . High Security . | . . . . . . . Max Security . | . . . . . . . Squads Dispatched 9 | . 1 2 . 2 4 . Investigation 6 | . . 2 . 2 2 . Extermination 1 | . . . . . 1 . Reinforcement 2 | . 1 . . . 1 . Assault . | . . . . . . . Garrison . | . . . . . . . Intercept . | . . . . . . . Searches Triggered . | . . . . . . . Construction Impeded . | . . . . . . . Haulers Reinforced . | . . . . . . . Active Scanning Responses . | . . . . . . . Cargo Convoy Interrupts . | . . . . . . . Stealth | -11 -10 -9 -9 -8 -7 -7 --------- Run | Yrd Mat Mat Min Mat Fac Low Distress Signals 4 | . 1 1 2 . . . Communications Jammed . | . . . . . . . Distress Signals . | . . . . . . . Times Spotted 83 | . 13 4 22 12 20 12 Peak Tracking Total 10 | . 8 4 6 5 9 10 Tactical Retreats 5 | . 2 . 1 . 2 . Traps | -11 -10 -9 -9 -8 -7 -7 ------- Run | Yrd Mat Mat Min Mat Fac Low Traps Triggered 4 | . . . . 1 3 . Indirectly . | . . . . . . . Trap Hack Attempts . | . . . . . . . Triggered . | . . . . . . . Disarmed . | . . . . . . . Reprogrammed . | . . . . . . . Reused . | . . . . . . . Traps Extracted . | . . . . . . . Installed . | . . . . . . . Triggered . | . . . . . . . Machines | -11 -10 -9 -9 -8 -7 -7 ---------- Run | Yrd Mat Mat Min Mat Fac Low Machines Disabled 17 | . . . 6 10 . 1 Max in Single Turn 4 | . . . 2 4 . 1 Machines Repaired . | . . . . . . . Machines Dismantled . | . . . . . . . Machines Sabotaged . | . . . . . . . Overloaded Fab Kills . | . . . . . . . Hacking | -11 -10 -9 -9 -8 -7 -7 --------- Run | Yrd Mat Mat Min Mat Fac Low Machines Accessed 9 | . 1 3 . 2 3 . Terminals 9 | . 1 3 . 2 3 . Fabricators . | . . . . . . . Repair Stations . | . . . . . . . Recycling Units . | . . . . . . . Scanalyzers . | . . . . . . . Garrison Access . | . . . . . . . Total Hacks 30 | . 3 13 . 6 8 . Successful 13 | . 2 8 . 1 2 . Failed 17 | . 1 5 . 5 6 . Catastrophic 4 | . . . . 1 3 . Database Lockouts . | . . . . . . . Manual 1 | . . . . . . 1 Terminals 30 | . 3 13 . 6 8 . Fabricators . | . . . . . . . Repair Stations . | . . . . . . . Recycling Units . | . . . . . . . Scanalyzers . | . . . . . . . Garrison Access . | . . . . . . . Terminal Hacks 13 | . 2 8 . 1 2 . Record 3 | . . 3 . . . . Prototype ID Bank 1 | . . 1 . . . . Terminal Index 1 | . . 1 . . . . Alert Level 1 | . . 1 . . . . Unreport Threat 1 | . . . . 1 . . Dispatch Records 1 | . . 1 . . . . Hauler Manifests 2 | . 1 . . . 1 . Zone Layout 3 | . 1 1 . . 1 . Fabricator Hacks . | . . . . . . . Repair Station Hacks . | . . . . . . . Recycling Unit Hacks . | . . . . . . . Scanalyzer . | . . . . . . . Garrison Access Hacks . | . . . . . . . Unauthorized Hacks . | . . . . . . . Terminals . | . . . . . . . Fabricators . | . . . . . . . Repair Stations . | . . . . . . . Recycling Units . | . . . . . . . Scanalyzers . | . . . . . . . Garrison Access . | . . . . . . . Data Cores Recovered 1 | . . . . 1 . . Used . | . . . . . . . Hacking Detections 8 | . 1 3 . 2 2 . Full Trace Events 7 | . 1 2 . 2 2 . Feedback Events . | . . . . . . . Feedback Blocked . | . . . . . . . Robot Schematics Acquired . | . . . . . . . Robots Built . | . . . . . . . Authchips . | . . . . . . . Time . | . . . . . . . Total Robot Build Rating . | . . . . . . . Part Schematics Acquired . | . . . . . . . Parts Built . | . . . . . . . Authchips . | . . . . . . . Time . | . . . . . . . Total Part Build Rating . | . . . . . . . Parts Repaired . | . . . . . . . Time . | . . . . . . . Parts Recycled . | . . . . . . . Recycled Matter . | . . . . . . . Retrieved Matter . | . . . . . . . Retrieved Components . | . . . . . . . Parts Scanalyzed . | . . . . . . . Part Schematics Acquired . | . . . . . . . Parts Damaged . | . . . . . . . Bothacking | -11 -10 -9 -9 -8 -7 -7 ------------ Run | Yrd Mat Mat Min Mat Fac Low Used RIF Installer . | . . . . . . . Robots Hacked 6 | . 3 . 1 . 1 1 Non-combat 1 | . 1 . . . . . Combat 5 | . 2 . 1 . 1 1 Robot Hacks Applied 9 | . 5 . 1 . 2 1 parse_system 3 | . 3 . . . . . find_terminals 1 | . 1 . . . . . find_shortcuts 4 | . 1 . 1 . 1 1 find_garrison 1 | . . . . . 1 . Relay Couplers Released . | . . . . . . . Fabnet Peak Effective % . | . . . . . . . Robots Rewired . | . . . . . . . Allies Hacked . | . . . . . . . Hacks Repelled . | . . . . . . . Allies | -11 -10 -9 -9 -8 -7 -7 -------- Run | Yrd Mat Mat Min Mat Fac Low Total Allies . | . . . . . . . Largest Group . | . . . . . . . Highest-Rated Group . | . . . . . . . Highest-Rated Ally . | . . . . . . . Total Orders . | . . . . . . . Ally Attacks . | . . . . . . . Total Damage . | . . . . . . . Kills . | . . . . . . . Allies Corrupted . | . . . . . . . Allies Melted . | . . . . . . . Intel | -11 -10 -9 -9 -8 -7 -7 ------- Run | Yrd Mat Mat Min Mat Fac Low Robot Analysis Total 5 | . 2 . 1 . 1 1 Derelict Logs Recovered 3 | . . . 1 . . 2 Drone Launches . | . . . . . . . Drone Recoveries . | . . . . . . . Exploration | -11 -10 -9 -9 -8 -7 -7 ------------- Run | Yrd Mat Mat Min Mat Fac Low Turns Passed 1396 | 13 142 77 257 258 283 366 Spaces Moved 1854 | 26 257 128 264 262 413 504 Core 209 | 26 74 . . . 102 7 Treads . | . . . . . . . Legs 100 | . . . . . . 100 Wheels . | . . . . . . . Hover 858 | . 115 128 264 262 89 . Flight 687 | . 68 . . . 222 397 Fastest Speed 32 | 50 37 60 60 77 32 32 Average Speed 57 | 50 49 60 76 77 46 49 Slowest Speed 120 | 50 60 60 77 77 77 120 Overloaded Moves . | . . . . . . . Propulsion Burnouts . | . . . . . . . Robots Hopped . | . . . . . . . Cave-ins Triggered . | . . . . . . . Exploration Rate (%) 35 | 3 37 18 71 34 11 76 Regions Visited 6 Branch Regions 2 Pre-discovered Areas . | . . . . . . . Known Exits Taken . | . . . . . . . Unknown Exits Taken 6 | 1 1 1 1 1 1 . Scrap Searched 3 | . . . 1 . . 2 Spaces Dug 7 | . . . 7 . . . Terrain Destroyed 348 | . . . 197 126 24 1 Melee . | . . . . . . . Projectile . | . . . . . . . AOE 347 | . . . 197 126 24 . Terrain Rammed . | . . . . . . . Walls Destroyed . | . . . . . . . Machines Disabled . | . . . . . . . Actions | -11 -10 -9 -9 -8 -7 -7 --------- Run | Yrd Mat Mat Min Mat Fac Low Total 2052 | 25 267 127 292 295 487 559 Wait 32 | . 5 . . 11 16 . Move 1848 | 25 256 127 263 261 412 504 Hop . | . . . . . . . Pick Up . | . . . . . . . Fast Attach . | . . . . . . . Attach . | . . . . . . . Detach . | . . . . . . . Swap . | . . . . . . . Drop . | . . . . . . . Fire 119 | . . . 27 23 21 48 Melee 6 | . 6 . . . . . Ram 15 | . . . 1 . 7 7 Kick . | . . . . . . . Crush . | . . . . . . . Escape Stasis 30 | . . . . . 30 . Rewire 2 | . . . 1 . 1 . Trap . | . . . . . . . Miscellaneous . | . . . . . . . Route ------- -11/Scrapyard -10/Materials (discovered 2 exits: *Mat / [*Min]) -9/Materials -9/Mines (discovered 2 exits: *Mat x2) -8/Materials -7/Factory -7/Lower Caves History --------- Turn | Location | Event 3 | -11/Scrapyard | Discovered new exit (range 16) 14 | -11/Scrapyard | Entered Materials 37 | -10/Materials | Discovered new exit (range 11) 150 | -10/Materials | Discovered new exit (range 11) 156 | -10/Materials | Entered another Materials area 225 | -9/Materials | Discovered new exit (range 14) 233 | -9/Materials | Entered Mines 234 | -9/Mines | Assembled infested the area 241 | -9/Mines | Discovered new exit (range 11) 299 | -9/Mines | Destroyed 12 combat bots 359 | -9/Mines | Core integrity fell below 50% 460 | -9/Mines | Learned Materials emergency access door positions 475 | -9/Mines | Discovered new exit (range 15) 490 | -9/Mines | Entered Materials 747 | -8/Materials | Discovered new exit (range 3) 748 | -8/Materials | Entered Factory 1024 | -7/Factory | Discovered new exit (range 7) 1031 | -7/Factory | Entered Lower Caves 1150 | -7/Lower Caves | Learned Factory trap positions 1201 | -7/Lower Caves | Learned 12 Factory zone layouts 1284 | -7/Lower Caves | Core integrity fell below 50% 1365 | -7/Lower Caves | Spotted B-75 Beast 1394 | -7/Lower Caves | Core integrity fell below 20% 1397 | -7/Lower Caves | Destroyed by B-75 Beast with Magnetic Acceleration Cannon Last Messages --------------- 01312_ Acquired 84 matter. 01313_ Acquired 89 matter. 01315_ Imp. Heat Sink fries itself beyond repair. 01315_ Lgt. Nuclear Core fries itself beyond repair. 01316_ Acquired 12 matter. 01326_ Aluminum Leg fries itself beyond repair. 01365_ Assault Rifle destroyed. 01365_ Lgt. Nuclear Core destroyed. 01388_ Released control of H-55 Commando. 01389_ H-55 Commando reactivates. 01389_ Slammed into B-75 Beast. 01389_ Destabilizing: System corrupted (+2). 01390_ Slammed into B-75 Beast. 01390_ Knocked back. 01392_ Slammed into B-75 Beast. 01393_ Knocked back. 01394_ Slammed into B-75 Beast. 01396_ Destabilizing: Core damaged (-28). Map ----- +----------------------------------------------------+ | | | | | | | | | | | ?????????????????????????????????????????????????? | | ?????????????????????????????????????????????????? | | ?????????????????????????????????????????????????? | | ?????????????????????????????????????????????????? | | ?????????????????????????????????????????????????? | | ?????????????????????????????????????????????????? | | ?????????????????????????????????????????????????? | | ?????????????????????????????????????????????????? | | ?????????????????????????????????????????????????? | | ?????????????????????????????????????????????????? | | ?????????????????????????????????????????????????? | | ?????????????????????????????????????????????????? | | ?????????????????????????????????????????????????? | | ?????????????????????????????????????????????????? | | ??????????????????#######????????????????????????? | | ??????????????????# ##??????????????????????? | | ???????????????#### $ ###????????????????????? | | ??????????????## ## ;#????????????????????? | | ?????????????## %##???????????????????? | | ??????? ?????# BB% #??????#????????????? | | ???????? ???## BB@ ##???? #???????????## | | ????????# ?## ;;###;# ;#??? #???????????#$ | | ????????# ## "#?### ##?? #????????####$ | | ???????? #???# ## ####????## ## | | ?????????? ##### #????# # | | ???????????# ## ## #???# # | | ??????###???# "" ##?????????# | | ?????## ???# ## ##????????# | | ????## ##?# ## #????????### | | ???## ### ######?????????## | | ???# #??????????????# | | ????# #??????????????# | | ????### % """ #?????????????# | | ??????## """""" #????????????## | | ???##### """ """ #?????????????## | | ??## """ ####??????????????## | | ??# #### """ """ #??????????????????# | | ??# ###??## """""" #??????????????????# | | ??# ##????# """ ?? #??????????????????? | | ??# #### ##??##???###????????????? | | ??# #??????? #????????????? | | ??# ? ###???# ##???????????? | | ??# ####### ### ? ### ###?????????# | | ??# ##?????? ##?? ?? #?????????# | | ??# #??????? ####??????? ??????????# | +----------------------------------------------------+ Best States ------------- Heat Dissipation 31 Energy Generation 24 Energy Capacity 110 Matter Stores 200 Matter Capacity 200 Sight Range 16 Terrain Scan Density 10 Armor Coverage 150 Resistance: KI 25 Resistance: EX 75 Resistance: I 25 Evasion (%) 63 Targeting Accuracy 5 Launcher Accuracy 20 Offensive Hacking 10 Item Schematics ----------------- None Robot Schematics ------------------ None Fabricated ------------ Nothing Alien Tech Used ----------------- None Achievements -------------- Everything Is Under Control Fist Fight I Survived The Infestation Remodeling Slippery One Challenges ------------ None Polymind | -11 -10 -9 -9 -8 -7 -7 ---------- Run | Yrd Mat Mat Min Mat Fac Low Hosts 5 | . 2 . 1 . 1 1 Combat Hostiles 4 | . 1 . 1 . 1 1 Allies . | . . . . . . . Unique Host Classes 4 | . 2 . 1 . . 1 Average Host Suspicion 77 | . 75 28 93 81 77 73 Unsuspicious Activity 193 | . 8 35 50 . . 100 Returns to Shadow . | . . . . . . . Fuzzy Dispatches . | . . . . . . . Protomatter Created 182 | . . . 13 120 23 26 Used 99 | . 11 . 40 . 14 34 Decayed 19 | . . . . 19 . . Highest Spend 40 | . 6 . 40 . 14 34 Top 5 Hosts by Kills: D-53 Grenadier (-9/Mines: 29) S-27 Virus (-7/Factory: 3) H-55 Commando (-7/Lower Caves: 3) Game ------ Seed ExperimentalTowerDoomcannon Manual? 0 Play Time 00:21:50 Cumulative 7.2 hours Start 2024.08.25 @ 23:49:18 End 2024.08.26 @ 00:10:49 Sessions 1 Manual Loads 0 Difficulty Rogue Special Mode Winter2022/Polymind Game No. 7 Rogue 7 Adventurer 0 Explorer 0 Win Type - Total 0 Types 0/0/0/0/0/0/0/0/0 Lore% 8 Gallery% 12 Achievement% 15 Wizard Run 0 Options --------- Layout 1 ASCII 0 Keyboard 0 Movement Mouse Keybinds 0 Fullscreen 1 Font 32/SmallcapsGlow Map View 50x40 Zoom Use 0% Tactical HUD 1 Map Filters NONE Filters NONE Steam 1 RUN: 88b45c6f-85c2-4fdf-86a9-dc41686433e1